bitfinex/quotes_SOLUSD_20250517
["timestamp","ask_amount","ask_price","bid_price","bid_amount"]
[1747500570141,30.0,164.74,164.68,105.42192954]
[1747500570342,36.07039601,164.74,164.68,105.42192954]
[1747500570864,36.07039601,164.74,164.68,99.34964886]
[1747500571561,36.07039601,164.74,164.68,80.7]
[1747500572371,51.24582395,164.74,164.68,80.7]
[1747500572528,51.24582395,164.74,164.66,88.3439]
[1747500573036,51.24582395,164.74,164.66,82.3074]
[1747500573567,26.0,164.71,164.62,80.7]
[1747500573873,40.92,164.7,164.61,1.5225]
[1747500574544,40.92,164.7,164.58,87.1844]
[1747500574545,21.25204929,164.69,164.58,87.1844]
[1747500574737,21.25204929,164.69,164.58,6.4844]
[1747500574946,5.0801,164.68,164.57,1.5225]
[1747500576459,21.25204929,164.69,164.57,7.59886842]
[1747500576643,21.25204929,164.69,164.57,26.24851728]
[1747500578359,21.25204929,164.69,164.58,45.86447197]
[1747500578661,41.71204929,164.69,164.58,45.86447197]
[1747500578958,26.53201408,164.69,164.58,126.56447197]
[1747500579257,26.53201408,164.69,164.59,6.4844]
[1747500579460,26.53201408,164.69,164.61,18.64964886]
[1747500579957,26.53201408,164.69,164.61,24.72453672]
[1747500580540,26.53201408,164.69,164.6,6.07526242]
[1747500581355,26.53201408,164.69,164.61,19.86428559]
[1747500581956,26.53201408,164.69,164.62,6.07459603]
[1747500582176,26.53201408,164.69,164.62,86.77459603]
[1747500583374,26.53201408,164.69,164.62,80.7]
[1747500583750,41.71204929,164.69,164.62,80.7]
[1747500587288,41.71204929,164.69,164.6,6.07532864]
[1747500587593,41.71204929,164.69,164.59,111.90964103]
[1747500590406,15.18003521,164.69,164.59,111.90964103]
[1747500591403,21.25204929,164.69,164.59,111.90964103]
[1747500593788,21.25204929,164.69,164.61,6.07496506]
[1747500593789,6.07201408,164.69,164.61,6.07496506]
[1747500595208,6.07164541,164.7,164.61,19.86430629]
[1747500595408,26.53164541,164.7,164.61,19.86430629]
[1747500596207,26.53164541,164.7,164.61,100.52959766]
[1747500596408,26.53164541,164.7,164.62,6.07459603]
[1747500597508,20.48,164.71,164.63,2.71772347]
[1747500597808,20.48,164.71,164.63,83.41772347]
[1747500598112,26.53067189,164.73,164.64,6.1353]
[1747500598415,26.53067189,164.73,164.65,18.64964886]
[1747500598911,26.53067189,164.73,164.66,6.07312036]
[1747500599596,6.07067189,164.73,164.66,6.07312036]
[1747500600406,56.53028844,164.74,164.66,6.07312036]
[1747500600623,30.0,164.74,164.67,19.86381138]
[1747500601201,30.0,164.74,164.67,45.86381138]
[1747500602102,30.0,164.74,164.68,6.0723828]
[1747500602294,6.06981868,164.75,164.68,80.7]
[1747500602497,21.2443255,164.75,164.68,80.7]
[1747500603111,6.06981868,164.75,164.68,80.7]
[1747500603482,6.06981868,164.75,164.67,6.07264327]
[1747500604117,6.06981868,164.75,164.66,6.07312036]
[1747500604412,6.06981868,164.75,164.65,80.7]
[1747500604597,21.2443255,164.75,164.65,80.7]
[1747500606902,21.2443255,164.75,164.65,86.77346014]
[1747500608018,21.2443255,164.75,164.65,80.7]
[1747500608314,21.2443255,164.75,164.64,32.1353]
[1747500608905,21.2443255,164.75,164.64,38.20913115]
[1747500610005,21.2443255,164.75,164.64,32.1353]
[1747500610427,51.59333915,164.75,164.64,86.8353]
[1747500610815,51.59333915,164.75,164.64,6.1353]
[1747500611322,51.59333915,164.75,164.63,82.2032]
[1747500611323,26.0,164.72,164.63,82.2032]
[1747500612132,21.24946875,164.71,164.63,82.2032]
[1747500612424,20.44,164.7,164.63,1.5032]
[1747500612608,40.86,164.7,164.63,1.5032]
[1747500612810,36.7469959,164.7,164.63,1.5032]
[1747500613011,6.07201408,164.69,164.63,1.5032]
[1747500613610,21.25204929,164.69,164.63,1.5032]
[1747500614504,21.25204929,164.69,164.6,6.4743]
[1747500614710,21.25204929,164.69,164.59,1.6584]
[1747500614711,47.25204929,164.69,164.59,1.6584]
[1747500615499,77.61211972,164.69,164.59,1.6584]
[1747500617208,21.25204929,164.69,164.59,1.6584]
[1747500617405,21.25204929,164.69,164.59,7.73390738]
[1747500617610,20.44,164.68,164.59,7.73390738]
[1747500617936,20.44,164.68,164.59,88.43390738]
[1747500618517,6.07201408,164.69,164.6,26.15252049]
[1747500619442,6.07164541,164.7,164.62,18.64964886]
[1747500620413,21.25075894,164.7,164.61,6.07496506]
[1747500620741,21.25075894,164.7,164.6,12.36343199]
[1747500623231,21.25075894,164.7,164.6,93.06343199]
[1747500624542,21.25075894,164.7,164.6,86.9882]
[1747500626447,26.0,164.67,164.6,6.2882]
[1747500626654,26.0,164.67,164.59,1.6584]
[1747500626835,20.44,164.66,164.59,1.6584]
[1747500627023,20.44,164.65,164.59,1.6584]
[1747500628436,6.07385811,164.64,164.59,1.6584]
[1747500630031,46.93334706,164.66,164.59,7.73405695]
[1747500631242,40.86,164.66,164.59,7.73405695]
[1747500631441,20.44,164.66,164.59,88.43405695]
[1747500631751,20.44,164.66,164.59,103.6233151]
[1747500634556,6.07299115,164.67,164.59,103.6233151]
[1747500635054,6.07127678,164.71,164.62,18.64964886]
[1747500635262,26.49127678,164.71,164.62,100.56412418]
[1747500635439,20.44,164.72,164.64,18.64964886]
[1747500635752,20.44,164.72,164.64,19.86395252]
[1747500636156,20.44,164.72,164.66,18.64964886]
[1747500636347,20.42,164.74,164.67,6.0928]
[1747500636536,20.42,164.74,164.68,1.21408974]
[1747500636852,30.67904029,164.76,164.68,81.91408974]
[1747500637160,6.06966424,164.76,164.68,80.7]
[1747500638266,6.06966424,164.76,164.69,18.64964886]
[1747500639257,6.06966424,164.76,164.68,80.7]
[1747500639435,21.24325006,164.76,164.68,80.7]
[1747500640158,47.24325006,164.76,164.68,80.7]
[1747500641247,47.24325006,164.76,164.67,30.81515099]
[1747500645174,32.06966424,164.76,164.68,24.7220098]
[1747500645466,20.44,164.78,164.69,28.74913484]
[1747500645655,20.4,164.78,164.7,18.64964886]
[1747500646453,26.46872201,164.78,164.7,18.64964886]
[1747500646764,26.46872201,164.78,164.69,27.535]
[1747500647664,26.0,164.77,164.69,1.535]
[1747500649472,6.06943432,164.76,164.69,1.535]
[1747500649674,26.46943432,164.76,164.69,1.535]
[1747500650273,6.06943432,164.76,164.69,1.535]
[1747500650682,26.46943432,164.76,164.69,1.535]
[1747500650972,26.46943432,164.76,164.69,7.60693723]
[1747500652075,26.46943432,164.76,164.69,1.535]
[1747500652261,41.64302014,164.76,164.69,1.535]
[1747500653580,26.46943432,164.76,164.7,18.64964886]
[1747500655060,26.46943432,164.76,164.7,24.72121026]
[1747500658190,6.06919418,164.77,164.7,105.42121026]
[1747500658374,26.4687119,164.78,164.7,105.42121026]
[1747500660690,6.0687119,164.78,164.7,105.42121026]
[1747500660890,26.4487119,164.78,164.7,105.42121026]
[1747500661200,6.06832938,164.79,164.7,105.42121026]
[1747500661366,20.38,164.78,164.7,105.42121026]
[1747500661890,20.38,164.78,164.7,99.34964886]
[1747500662083,20.38,164.78,164.7,80.7]
[1747500662279,46.38,164.78,164.69,1.535]
[1747500663288,21.24559911,164.74,164.67,86.7928]
[1747500665090,6.07017117,164.74,164.68,18.64964886]
[1747500665295,47.24257023,164.77,164.68,18.64964886]
[1747500665690,67.64257023,164.77,164.68,18.64964886]
[1747500666509,26.46906597,164.77,164.68,132.63609264]
[1747500666801,26.46906597,164.77,164.68,146.60285866]
[1747500667008,26.46906597,164.77,164.7,18.64964886]
[1747500667305,26.46906597,164.77,164.72,18.64964886]
[1747500667499,6.06881345,164.78,164.72,18.64964886]
[1747500667690,6.06796116,164.8,164.73,6.0527]
[1747500667892,6.06796116,164.8,164.75,20.25194886]
[1747500668105,26.46733399,164.82,164.75,20.25194886]
[1747500668489,4.18937605,164.84,164.79,18.64964886]
[1747500669310,4.18937605,164.84,164.8,6.06796116]
[1747500669687,6.06617078,164.85,164.8,12.19906116]
[1747500670402,6.06585523,164.86,164.8,12.19906116]
[1747500670713,6.06585523,164.86,164.8,6.1311]
[1747500672611,26.46544127,164.87,164.8,12.19893184]
[1747500674720,26.46544127,164.87,164.81,18.64964886]
[1747500675691,26.46544127,164.87,164.81,24.71706352]
[1747500675895,20.4,164.87,164.82,1.5645]
[1747500676605,6.06474987,164.89,164.83,18.64964886]
[1747500677307,26.42437372,164.9,164.83,18.64964886]
[1747500677913,15.15620994,164.95,164.86,26.0]
[1747500678114,20.36,164.94,164.87,26.0]
[1747500678329,20.36,164.94,164.88,25.24304886]
[1747500678619,20.36,164.94,164.89,1.6054]
[1747500678992,26.42207565,164.96,164.89,1.6054]
[1747500679295,26.42178229,164.97,164.89,1.6054]
[1747500680298,41.57605276,164.97,164.87,80.7]
[1747500680499,26.0,164.94,164.85,80.7]
[1747500680699,26.0,164.92,164.83,0.1575933]
[1747500680917,40.72,164.91,164.83,0.1575933]
[1747500681459,40.72,164.91,164.84,18.64964886]
[1747500681798,26.42407022,164.91,164.85,6.06612071]
[1747500682326,26.42407022,164.91,164.85,86.76612071]
[1747500683826,26.42407022,164.91,164.85,80.7]
[1747500684033,26.42407022,164.91,164.85,86.76609279]
[1747500684525,20.36,164.91,164.85,86.76609279]
[1747500685256,20.36,164.91,164.86,44.64964886]
[1747500685554,6.06280987,164.95,164.88,1.6054]
[1747500685746,26.40280987,164.95,164.88,82.3054]
[1747500685944,26.40280987,164.95,164.89,32.06464916]
[1747500685945,20.34,164.95,164.89,32.06464916]
[1747500686635,26.40258274,164.95,164.89,32.06464916]
[1747500686952,26.40258274,164.95,164.88,82.3054]
[1747500687331,41.55869065,164.95,164.88,82.3054]
[1747500688248,41.55869065,164.95,164.86,26.0]
[1747500690670,41.55869065,164.95,164.84,20.25504886]
[1747500690671,26.0,164.94,164.84,1.6054]
[1747500691367,26.0,164.94,164.84,7.67162127]
[1747500692366,21.2211241,164.93,164.84,26.32127013]
[1747500694374,21.2211241,164.93,164.84,1.6054]
[1747500695254,21.2211241,164.93,164.84,20.25504886]
[1747500695454,20.34,164.92,164.84,20.25504886]
[1747500696356,6.06391364,164.91,164.84,26.3214956]
[1747500696662,6.06391364,164.91,164.84,1.6054]
[1747500697379,21.22369776,164.91,164.84,1.6054]
[1747500698391,6.06391364,164.91,164.84,7.67183359]
[1747500698677,6.06391364,164.91,164.84,88.37183359]
[1747500700295,6.06391364,164.91,164.84,82.3054]
[1747500700710,6.06391364,164.91,164.83,38.49480803]
[1747500700711,47.22369776,164.91,164.83,6.4280933]
[1747500700883,47.22369776,164.91,164.83,0.1575933]
[1747500705208,15.12,164.89,164.83,0.1575933]
[1747500705520,15.12,164.89,164.83,6.22442241]
[1747500705722,35.46,164.89,164.83,6.22442241]
[1747500705912,15.12,164.89,164.83,6.22442241]
[1747500706406,15.12,164.89,164.84,18.64964886]
[1747500706613,15.12,164.89,164.86,18.64964886]
[1747500706826,15.12,164.89,164.87,1.5052]
[1747500707123,15.12,164.89,164.88,50.71466584]
[1747500707329,6.06219445,164.96,164.88,32.06501698]
[1747500707506,6.06219445,164.96,164.88,112.76501698]
[1747500708308,6.06219445,164.96,164.88,80.7]
[1747500708507,21.21738358,164.96,164.88,86.76498967]
[1747500709225,6.06219445,164.96,164.88,86.76498967]
[1747500709528,6.06219445,164.96,164.88,87.97755693]
[1747500710426,6.06219445,164.96,164.88,81.91256726]
[1747500710642,18.64964886,164.95,164.87,1.5052]
[1747500710930,21.21738358,164.96,164.87,1.5052]
[1747500711446,23.0438602,164.95,164.87,1.5052]
[1747500711652,26.0,164.93,164.83,0.1575933]
[1747500711935,18.64964886,164.91,164.83,0.1575933]
[1747500712256,20.32,164.9,164.83,0.1575933]
[1747500712536,21.22627206,164.89,164.83,0.1575933]
[1747500713042,4.39496771,164.88,164.83,0.1575933]
[1747500714155,18.64964886,164.87,164.83,0.1575933]
[1747500714446,46.32,164.86,164.83,0.1575933]
[1747500714611,6.06612071,164.85,164.83,0.1575933]
[1747500717241,15.12,164.84,164.83,0.1575933]
[1747500718842,21.18648871,164.84,164.83,0.1575933]
[1747500720855,86.15613757,164.84,164.83,0.1575933]
[1747500721245,60.15613757,164.84,164.83,0.1575933]
[1747500721745,44.64964886,164.8,164.7,80.7]
[1747500721948,50.32,164.79,164.7,80.7]
[1747500722167,20.32,164.79,164.7,80.7]
[1747500722800,26.38869765,164.78,164.7,80.7]
[1747500723067,41.56044179,164.78,164.7,80.7]
[1747500725049,26.38869765,164.78,164.7,86.77153068]
[1747500725361,30.0,164.76,164.7,86.77153068]
[1747500726148,36.06956603,164.76,164.7,86.77153068]
[1747500726347,6.06956603,164.76,164.7,86.77153068]
[1747500727173,40.64,164.78,164.7,86.77153068]
[1747500727388,20.32,164.78,164.7,87.98549103]
[1747500727576,20.32,164.78,164.7,113.98549103]
[1747500727947,20.32,164.78,164.71,18.64964886]
[1747500728264,20.32,164.78,164.72,7.28468571]
[1747500728456,20.32,164.78,164.72,87.98468571]
[1747500728769,26.38806776,164.8,164.72,103.16195622]
[1747500728952,26.38806776,164.8,164.72,87.98468571]
[1747500729281,20.34,164.83,164.75,6.1017]
[1747500729574,40.66,164.83,164.75,88.0152466]
[1747500730257,40.66,164.83,164.76,6.06943432]
[1747500730877,20.34,164.83,164.76,6.06943432]
[1747500731288,26.40691871,164.83,164.76,6.06943432]
[1747500731657,26.40691871,164.83,164.75,92.8714492]
[1747500733058,41.57406061,164.83,164.75,86.8017]
[1747500733262,41.57406061,164.83,164.75,92.87146542]
[1747500733485,26.40691871,164.83,164.75,92.87146542]
[1747500736890,20.34,164.83,164.75,92.87146542]
[1747500737187,19.03521576,164.86,164.8,1.5725]
[1747500737484,45.42098402,164.86,164.8,82.2725]
[1747500737672,25.10098402,164.86,164.8,82.2725]
[1747500738287,25.10098402,164.86,164.8,88.34018428]
[1747500738669,25.10098402,164.86,164.8,82.2725]
[1747500740494,25.10098402,164.86,164.8,1.5725]
[1747500741091,25.10098402,164.86,164.8,7.6404002]
[1747500741898,19.03521576,164.86,164.8,7.6404002]
[1747500742393,25.1010295,164.86,164.8,7.6404002]
[1747500742587,19.03521576,164.86,164.81,6.3382]
[1747500744073,19.03521576,164.86,164.82,26.0]
[1747500744290,6.06294776,164.94,164.83,19.86270696]
[1747500744496,26.36207565,164.96,164.86,27.56833464]
[1747500744797,26.31775935,164.96,164.87,18.64964886]
[1747500745099,56.55120893,164.97,164.87,99.34964886]
[1747500745305,10.25120893,164.97,164.88,26.0]
[1747500745474,30.55120893,164.97,164.88,27.21261565]
[1747500745680,26.36183288,164.97,164.88,27.21261565]
[1747500746087,26.36183288,164.97,164.88,26.0]
[1747500747509,26.36183288,164.97,164.88,32.06488932]
[1747500747681,26.36183288,164.97,164.87,86.76532973]
[1747500748797,41.51610335,164.97,164.87,87.97796527]
[1747500750397,21.21610335,164.97,164.87,87.97796527]
[1747500750598,20.3,164.96,164.87,87.97796527]
[1747500751207,6.06183288,164.97,164.87,87.97796527]
[1747500751385,26.36183288,164.97,164.87,87.97796527]
[1747500752684,26.36183288,164.97,164.88,18.64964886]
[1747500752901,6.06183288,164.97,164.91,1.623]
[1747500753076,6.06183288,164.97,164.91,82.323]
[1747500754104,6.06183288,164.97,164.91,88.38674601]
[1747500754806,6.06183288,164.97,164.91,82.323]
[1747500756497,6.06183288,164.97,164.91,88.3868957]
[1747500758516,26.36136004,164.98,164.92,6.4347]
[1747500758718,26.36136004,164.98,164.92,87.1347]
[1747500759221,6.06060606,165.0,164.92,87.1347]
[1747500759792,6.06060606,165.0,164.93,6.06317831]
[1747500759995,6.06037605,165.01,164.93,33.27537935]
[1747500760195,6.06037605,165.01,164.93,113.97537935]
[1747500761331,40.58,165.03,164.93,113.97537935]
[1747500761332,6.05987153,165.02,164.93,113.97537935]
[1747500762693,6.05987153,165.02,164.95,6.06244316]
[1747500762908,6.05987153,165.02,164.96,1.5096]
[1747500763101,6.05987153,165.02,164.96,82.2096]
[1747500765409,6.05987153,165.02,164.96,88.27159142]
[1747500767790,20.3,165.03,164.96,88.27159142]
[1747500767996,6.05936716,165.04,164.98,6.1419]
[1747500768312,6.05936716,165.04,164.98,86.8419]
[1747500769225,6.05877006,165.05,164.98,92.90304341]
[1747500772727,6.058403,165.06,164.98,92.90304341]
[1747500773929,6.05803598,165.07,164.98,92.90304341]
[1747500777546,6.05803598,165.07,164.98,94.11483564]
[1747500777724,26.31768935,165.08,165.01,18.64964886]
[1747500777905,26.31768935,165.08,165.01,99.34964886]
[1747500778818,26.31768935,165.08,165.01,80.7]
[1747500779911,26.31768935,165.08,165.01,86.76012328]
[1747500780112,26.31768935,165.08,165.01,80.7]
[1747500780314,41.46186187,165.08,165.01,80.7]
[1747500780739,67.46186187,165.08,165.01,80.7]
[1747500780944,26.0,165.05,164.98,80.7]
[1747500781250,20.24,165.04,164.98,80.7]
[1747500781430,20.24,165.04,164.96,82.2328]
[1747500782016,6.05950433,165.03,164.96,82.2328]
[1747500782419,21.20826516,165.03,164.96,82.2328]
[1747500783550,6.05950433,165.03,164.96,82.2328]
[1747500783728,6.05950433,165.03,164.96,88.29483824]
[1747500783920,20.24,165.04,164.98,6.06134076]
[1747500785143,26.29928518,165.04,164.98,6.06134076]
[1747500785455,26.29928518,165.04,164.98,86.76134076]
[1747500785955,26.29928518,165.04,164.98,80.7]
[1747500786139,26.29928518,165.04,164.98,86.76118674]
[1747500786526,20.24,165.04,164.98,87.97316941]
[1747500787725,6.05847943,165.06,164.99,6.159]
[1747500788442,6.05847943,165.06,165.0,6.06060606]
[1747500791450,6.05847943,165.06,165.0,86.76060606]
[1747500791635,6.05803598,165.07,165.0,86.76060606]
[1747500791823,26.27803598,165.07,165.0,86.76060606]
[1747500798245,20.26,165.08,165.01,2.84698941]
[1747500798559,20.26,165.08,165.01,83.54698941]
[1747500799434,26.31777675,165.08,165.01,83.54698941]
[1747500799634,26.31777675,165.08,165.02,6.05987153]
[1747500799951,20.26,165.08,165.02,6.05987153]
[1747500801869,20.26,165.08,165.02,86.75987153]
[1747500802343,6.0569696,165.1,165.02,86.75987153]
[1747500803157,6.0569696,165.1,165.02,80.7]
[1747500803662,21.19930757,165.1,165.02,80.7]
[1747500804344,26.0,165.07,165.02,80.7]
[1747500806043,6.058403,165.06,165.02,80.7]
[1747500806450,6.058403,165.06,165.01,1.6352]
[1747500806964,4.40729991,165.05,165.01,1.6352]
[1747500808351,6.05913717,165.04,165.01,1.6352]
[1747500808552,6.05913717,165.04,164.99,6.159]
[1747500809565,4.40729991,165.03,164.97,1.6352]
[1747500810370,6.05987153,165.02,164.97,1.6352]
[1747500812267,6.05913717,165.04,164.97,7.69675343]
[1747500814357,26.278403,165.06,164.98,18.64964886]
[1747500814859,26.278403,165.06,164.97,33.69675343]
[1747500815556,4.40565968,165.05,164.97,114.39675343]
[1747500816061,6.05913717,165.04,164.97,114.39675343]
[1747500817070,6.05877006,165.05,164.97,114.39675343]
[1747500818962,20.2,165.06,164.97,114.39675343]
[1747500818963,6.058403,165.06,164.97,114.39675343]
[1747500819161,26.258403,165.06,164.97,114.39675343]
[1747500819377,26.258403,165.06,164.98,18.64964886]
[1747500820974,26.258403,165.06,164.99,6.06097339]
[1747500821277,6.058403,165.06,164.99,6.06097339]
[1747500821480,6.058403,165.06,164.99,86.76097339]
[1747500822978,46.4781504,165.07,164.99,86.76097339]
[1747500824373,26.2581504,165.07,164.99,86.76097339]
[1747500824675,6.057669,165.08,165.0,18.64964886]
[1747500824874,26.27697382,165.1,165.03,1.6262]
[1747500825172,20.22,165.1,165.03,1.6262]
[1747500825392,20.22,165.1,165.03,82.3262]
[1747500825565,6.05669762,165.11,165.03,82.3262]
[1747500825964,26.25629013,165.12,165.03,82.3262]
[1747500826161,6.05546808,165.14,165.04,19.86107557]
[1747500826374,6.05546808,165.14,165.06,18.64964886]
[1747500826880,6.05546808,165.14,165.07,6.05803598]
[1747500827075,6.05546808,165.14,165.07,86.75803598]
[1747500828252,6.05546808,165.14,165.07,80.7]
[1747500828455,21.19413829,165.14,165.07,80.7]
[1747500828855,4.40085603,165.13,165.07,80.7]
[1747500829956,41.39413829,165.14,165.07,80.7]
[1747500830986,21.19413829,165.14,165.05,6.0455]
[1747500831792,21.19413829,165.14,165.05,12.10417317]
[1747500832186,6.05546808,165.14,165.05,12.10417317]
[1747500836473,6.05546808,165.14,165.05,92.80417317]
[1747500841494,21.19413829,165.14,165.05,86.7455]
[1747500841799,6.05546808,165.14,165.05,92.80424514]
[1747500843894,6.05510142,165.15,165.06,45.86100391]
[1747500844104,6.05510142,165.15,165.07,1.5229]
[1747500845080,6.05510142,165.15,165.08,6.057669]
[1747500845595,6.05510142,165.15,165.08,86.757669]
[1747500846499,6.05510142,165.15,165.08,80.7]
[1747500847287,6.05510142,165.15,165.08,86.75764674]
[1747500847489,6.05510142,165.15,165.08,80.7]
[1747500848200,21.19285497,165.15,165.08,80.7]
[1747500848506,21.19285497,165.15,165.07,1.5229]
[1747500848893,18.64964886,165.14,165.07,1.5229]
[1747500849404,21.19285497,165.15,165.07,1.5229]
[1747500851807,21.19285497,165.15,165.07,7.58074766]
[1747500851994,26.23510142,165.15,165.07,7.58074766]
[1747500854589,6.0547348,165.16,165.07,7.58074766]
[1747500854787,26.2347348,165.16,165.07,7.58074766]
[1747500857513,26.2347348,165.16,165.07,88.28074766]
[1747500857701,6.0547348,165.16,165.08,19.86083365]
[1747500858022,26.23449358,165.17,165.08,19.86083365]
[1747500858687,26.23449358,165.17,165.07,103.42583762]
[1747500859090,41.37041414,165.17,165.07,88.28074766]
[1747500859615,20.18,165.16,165.07,88.28074766]
[1747500859918,6.05510142,165.15,165.07,88.28074766]
[1747500861898,6.05510142,165.15,165.07,89.49196203]
[1747500863799,6.05510142,165.15,165.07,88.28074766]
[1747500864112,21.19285497,165.15,165.07,82.2229]
[1747500865016,4.39277074,165.14,165.07,88.28090529]
[1747500865215,4.39277074,165.14,165.07,82.2229]
[1747500865723,6.05583479,165.13,165.07,82.2229]
[1747500865921,6.05583479,165.13,165.07,88.28087614]
[1747500867817,21.19285497,165.15,165.07,88.28087614]
[1747500868420,4.39778635,165.14,165.07,88.28087614]
[1747500869323,6.05583479,165.13,165.07,88.28087614]
[1747500870030,6.05583479,165.13,165.07,82.2229]
[1747500870410,6.05583479,165.13,165.07,88.28088192]
[1747500871923,21.19285497,165.15,165.07,88.28088192]
[1747500872908,4.40297697,165.14,165.07,88.28088192]
[1747500873128,6.05583479,165.13,165.07,88.28088192]
[1747500873823,6.05583479,165.13,165.07,88.28089569]
[1747500875729,6.05510142,165.15,165.07,88.28089569]
[1747500876823,4.40357958,165.14,165.07,88.28089569]
[1747500877038,4.40357958,165.14,165.08,1.21117614]
[1747500877212,4.40357958,165.14,165.09,24.88684886]
[1747500877414,4.40357958,165.14,165.1,1.21099462]
[1747500877613,4.40357958,165.16,165.1,1.21099462]
[1747500877815,4.40357958,165.16,165.11,6.05656834]
[1747500878041,4.40357958,165.16,165.11,86.75656834]
[1747500878736,46.39447786,165.17,165.11,86.75656834]
[1747500880130,26.23447786,165.17,165.11,86.75656834]
[1747500882535,20.18,165.17,165.12,7.71392079]
[1747500884446,20.16,165.2,165.12,89.62481615]
[1747500884745,26.213415,165.2,165.12,89.62481615]
[1747500885634,6.05290236,165.21,165.12,89.62481615]
[1747500885822,26.21290236,165.21,165.12,89.62481615]
[1747500890038,26.21290236,165.21,165.14,6.05546808]
[1747500890241,25.71290236,165.21,165.14,6.05546808]
[1747500890446,25.71290236,165.21,165.14,86.75546808]
[1747500891425,26.21263391,165.22,165.14,86.75546808]
[1747500891831,26.21263391,165.22,165.14,87.96607413]
[1747500892731,26.21263391,165.22,165.14,86.75546808]
[1747500895949,41.34397394,165.22,165.14,80.7]
[1747500896834,4.3877559,165.21,165.14,80.7]
[1747500897035,6.05326876,165.2,165.14,80.7]
[1747500899754,21.18515827,165.21,165.14,80.7]
[1747500901252,4.38803219,165.2,165.14,80.7]
[1747500901755,21.18772321,165.19,165.14,80.7]
[1747500901958,20.16,165.18,165.14,80.7]
[1747500902426,20.16,165.18,165.13,6.4224]
[1747500903455,6.05436822,165.17,165.13,6.4224]
[1747500910880,6.05436822,165.17,165.12,82.3578]
[1747500911465,6.05436822,165.17,165.12,1.6578]
[1747500913375,6.05436822,165.17,165.09,113.1597]
[1747500913563,21.19028878,165.17,165.09,87.1597]
[1747500915549,4.3913652,165.16,165.09,87.1597]
[1747500915749,6.05510142,165.15,165.09,6.4597]
[1747500920481,6.05510142,165.15,165.09,87.1597]
[1747500925883,47.19285497,165.15,165.09,6.4597]
[1747500926065,47.19285497,165.15,165.08,1.6439]
[1747500926379,4.3950189,165.14,165.08,1.6439]
[1747500926573,6.05583479,165.13,165.08,1.6439]
[1747500928373,21.19413829,165.14,165.08,1.6439]
[1747500929561,4.3907419,165.13,165.08,1.6439]
[1747500929857,6.05620155,165.12,165.08,1.6439]
[1747500930871,21.19413829,165.14,165.08,1.6439]
[1747500933057,21.19413829,165.14,165.05,86.7353]
[1747500933973,18.64964886,165.13,165.05,86.7353]
[1747500934163,21.19798921,165.11,165.03,82.2045]
[1747500934362,20.14,165.1,165.03,1.5045]
[1747500935279,6.05730207,165.09,165.03,1.5045]
[1747500953107,21.20055726,165.09,165.03,1.5045]
[1747500954781,6.05730207,165.09,165.03,1.5045]
[1747500955301,6.05730207,165.09,164.95,191.77354953]
[1747500955302,5.5789,164.99,164.9,8.64952384]
[1747500955600,18.64964886,164.92,164.9,8.64952384]
[1747500955775,6.66011108,164.95,164.81,21.06257307]
[1747500955977,4.38207082,164.91,164.81,21.06257307]
[1747500956302,4.38207082,164.91,164.81,47.06257307]
[1747500956478,18.64964886,164.9,164.81,21.06257307]
[1747500956879,4.38207082,164.89,164.81,21.06257307]
[1747500957084,4.38207082,164.89,164.81,6.6467]
[1747500957484,15.12,164.88,164.81,6.6467]
[1747500958693,41.34504984,164.88,164.81,6.6467]
[1747500959012,61.48504984,164.88,164.81,6.6467]
[1747500960403,61.48504984,164.88,164.78,1.6442]
[1747500960605,87.48504984,164.88,164.78,7.71277721]
[1747500960810,55.42,164.88,164.78,33.71277721]
[1747500963217,55.42,164.88,164.78,48.88452135]
[1747500963985,61.48520612,164.88,164.78,33.71277721]
[1747500964586,26.0,164.85,164.78,1.6442]
[1747500964802,26.0,164.85,164.78,7.71287745]
[1747500965616,26.0,164.85,164.78,1.6442]
[1747500966001,45.60657221,164.84,164.78,7.71280946]
[1747500968427,45.60657221,164.84,164.78,88.41280946]
[1747500969105,51.67338525,164.84,164.78,7.71276199]
[1747500969304,45.60657221,164.84,164.78,7.71276199]
[1747500970231,45.60657221,164.84,164.78,22.88450613]
[1747500970872,45.60657221,164.84,164.79,45.8629138]
[1747500971079,45.60657221,164.84,164.79,126.5629138]
[1747500971373,45.60657221,164.84,164.79,125.34964886]
[1747500972344,45.60657221,164.84,164.81,18.64964886]
[1747500972773,45.60657221,164.84,164.82,6.06722485]